bitfinex/quotes_ETHUSD_20240902
["timestamp","ask_amount","ask_price","bid_price","bid_amount"]
[1725286019648,3.98813,2507.5,2506.9,2.3294]
[1725286019940,3.98879,2507.1,2506.9,2.3294]
[1725286020139,3.98865,2507.2,2506.9,2.3294]
[1725286020523,3.9883,2507.4,2506.9,6.31834]
[1725286020727,3.98837,2507.3,2507.0,3.0]
[1725286021152,3.98798,2507.6,2507.0,0.931854]
[1725286021338,3.98798,2507.6,2507.0,3.931854]
[1725286021538,3.98813,2507.5,2507.0,7.920604]
[1725286021736,3.98764,2507.8,2507.2,3.98839]
[1725286021939,7.97529,2507.8,2507.4,2.374]
[1725286022145,3.98731,2508.0,2507.4,6.3621]
[1725286022385,3.98731,2508.0,2507.5,3.5374]
[1725286022537,3.98787,2507.6,2507.5,3.0]
[1725286022738,3.98677,2508.3,2507.2,3.0]
[1725286022739,3.98811,2507.5,2507.2,3.0]
[1725286022969,3.98821,2507.4,2507.1,5.4687]
[1725286023277,3.98821,2507.4,2507.2,3.0]
[1725286023478,3.98811,2507.5,2507.1,2.4687]
[1725286023892,3.98831,2507.4,2507.1,2.4687]
[1725286024180,3.98838,2507.3,2507.1,2.4687]
[1725286024545,3.98811,2507.5,2507.1,2.4687]
[1725286024742,3.98836,2507.3,2507.1,2.4687]
[1725286025080,3.98852,2507.2,2506.9,3.0]
[1725286025293,7.97711,2507.2,2506.8,5.3824]
[1725286025442,3.98868,2507.1,2506.8,5.3824]
[1725286025783,3.98852,2507.2,2506.9,3.0]
[1725286025957,3.98852,2507.2,2506.8,2.3824]
[1725286026375,3.98808,2507.5,2507.0,3.98878]
[1725286026693,3.98766,2507.8,2507.2,6.37078]
[1725286026848,3.98748,2507.9,2507.4,3.98811]
[1725286027044,3.98748,2507.9,2507.5,3.0]
[1725286027045,3.98755,2507.8,2507.5,3.0]
[1725286027263,3.98755,2507.8,2507.3,6.98821]
[1725286027482,3.98731,2508.0,2507.4,0.41281025]
[1725286027685,2.2991,2508.3,2507.4,0.41281025]
[1725286027686,3.98677,2508.3,2507.7,3.98771]
[1725286027842,3.98671,2508.4,2507.8,3.47851308]
[1725286028046,3.9869,2508.3,2507.8,3.47851308]
[1725286028380,3.98693,2508.2,2507.8,3.47851308]
[1725286028584,3.98676,2508.3,2507.8,3.47851308]
[1725286028898,3.98911,2506.9,2506.4,2.38]
[1725286029093,0.88754114,2506.9,2506.5,0.41294424]
[1725286029264,3.98888,2507.0,2506.5,0.49272943]
[1725286029470,3.98888,2507.0,2506.4,6.36978]
[1725286029471,0.08974214,2506.9,2506.4,2.38]
[1725286029779,3.98941,2506.7,2506.4,2.38]
[1725286029964,0.08974214,2506.9,2506.4,2.38]
[1725286029965,3.98947,2506.6,2506.4,2.38]
[1725286030168,4.07936214,2506.5,2506.0,2.495]
[1725286030494,3.98986,2506.4,2506.0,2.495]
[1725286030689,3.98995,2506.3,2506.0,2.495]
[1725286031078,3.98995,2506.3,2505.7,2.005]
[1725286031079,3.99037,2506.1,2505.7,2.005]
[1725286031409,3.99059,2505.9,2505.7,0.85492936]
[1725286031615,3.99059,2505.9,2505.7,0.005]
[1725286031907,7.98148,2505.8,2505.7,0.005]
[1725286033364,3.99074,2505.8,2505.7,0.005]
[1725286033613,7.98148,2505.8,2505.7,0.005]
[1725286033813,3.99074,2505.8,2505.7,0.005]
[1725286034984,7.98134,2505.9,2505.7,0.005]
[1725286035182,3.98908,2506.9,2505.7,2.2703]
[1725286035183,3.99036,2506.1,2505.7,2.2703]
[1725286035504,3.99044,2506.0,2505.7,2.2703]
[1725286036033,3.99036,2506.1,2505.7,2.2703]
[1725286036749,3.99012,2506.2,2505.8,0.07980616]
[1725286037093,3.99051,2506.0,2505.7,2.2703]
[1725286037298,3.99074,2505.8,2505.7,0.005]
[1725286037613,7.98148,2505.8,2505.7,0.005]
[1725286037808,9.27739335,2505.8,2505.7,0.005]
[1725286039437,8.07122214,2505.8,2505.7,0.05758826]
[1725286039675,8.07122214,2505.8,2505.7,0.005]
[1725286039676,7.98148,2505.8,2505.7,0.005]
[1725286039804,8.07122214,2505.8,2505.7,0.05758826]
[1725286040332,9.84946492,2505.8,2505.7,0.05758826]
[1725286041648,3.99074,2505.8,2505.7,0.05758826]
[1725286042143,7.98148,2505.8,2505.7,0.05758826]
[1725286042455,8.07122214,2505.8,2505.7,0.05758826]
[1725286042736,3.99074,2505.8,2505.7,0.05758826]
[1725286043858,3.99019,2506.2,2505.7,0.05758826]
[1725286044019,3.99019,2506.2,2505.7,4.35964723]
[1725286044424,4.07962214,2506.4,2505.8,6.99071]
[1725286044603,3.99035,2506.1,2505.8,3.03659055]
[1725286044802,3.99035,2506.1,2505.8,0.03659055]
[1725286044803,3.99054,2506.0,2505.8,0.03659055]
[1725286045007,3.99054,2506.0,2505.7,3.005]
[1725286045008,3.99054,2506.0,2505.7,0.005]
[1725286045253,7.98073,2506.1,2505.9,0.03658188]
[1725286045414,3.99042,2506.0,2505.8,0.03659055]
[1725286045743,3.99042,2506.0,2505.7,0.005]
[1725286045905,3.99042,2506.0,2505.9,0.03658188]
[1725286046326,3.99042,2506.0,2505.7,0.005]
[1725286046670,3.99042,2506.0,2505.8,0.03659055]
[1725286046961,1.26908817,2506.4,2505.7,0.005]
[1725286046962,4.07979214,2506.3,2505.7,0.005]
[1725286047273,3.99005,2506.3,2505.9,0.03639782]
[1725286047460,3.99035,2506.1,2505.8,0.03636815]
[1725286047618,7.9807,2506.1,2506.0,0.03635082]
[1725286047819,3.99035,2506.1,2505.7,4.09709]
[1725286048014,3.99035,2506.1,2506.0,0.03635082]
[1725286048215,3.99011,2506.2,2505.7,4.09709]
[1725286048216,3.99043,2506.0,2505.7,4.09709]
[1725286048873,7.98098,2506.0,2505.7,4.09709]
[1725286049030,3.99069,2505.9,2505.7,3.555]
[1725286049382,3.99074,2505.8,2505.7,3.005]
[1725286049575,12.371294,2505.8,2505.7,0.005]
[1725286049727,8.380554,2505.8,2505.7,0.005]
[1725286049929,12.371294,2505.8,2505.7,0.005]
[1725286055256,24.41453961,2505.8,2505.7,0.005]
[1725286055458,28.40527961,2505.8,2505.7,0.005]
[1725286057499,28.95527961,2505.8,2505.7,1e-05]
[1725286057800,28.40527961,2505.8,2505.7,1e-05]
[1725286058638,3.99294,2504.5,2504.3,2.3827]
[1725286058842,3.99294,2504.5,2504.3,5.3827]
[1725286059216,3.9917,2505.2,2504.2,0.1249905]
[1725286059217,3.99313,2504.3,2504.2,0.1249905]
[1725286059400,8.385573,2504.3,2504.2,0.1249905]
[1725286059603,11.97939,2504.3,2504.2,0.1249905]
[1725286060294,7.98626,2504.3,2504.2,0.1249905]
[1725286060495,8.07600214,2504.3,2504.2,0.1249905]
[1725286060999,3.99313,2504.3,2504.2,0.16185784]
[1725286061195,7.98585,2504.5,2504.2,2.4727905]
[1725286061424,3.99289,2504.5,2504.2,3.15673418]
[1725286061624,3.99306,2504.4,2504.2,2.51010313]
[1725286062208,3.99281,2504.6,2504.2,2.51010313]
[1725286062422,3.99289,2504.5,2504.3,3.0]
[1725286062669,9.71270561,2505.0,2504.3,3.0]
[1725286062670,3.99179,2505.2,2504.7,6.34024]
[1725286062814,3.9918,2505.2,2504.8,3.55]
[1725286063148,3.9918,2505.2,2504.8,4.77612864]
[1725286063149,3.99193,2505.1,2504.8,4.77612864]
[1725286063516,3.99217,2504.9,2504.8,3.03709164]
[1725286063715,3.99217,2504.9,2504.8,0.03709164]
[1725286064037,3.99126,2505.5,2504.7,2.3478]
[1725286064239,3.9918,2505.2,2504.8,0.03673852]
[1725286064412,3.99156,2505.3,2504.8,0.03673852]
[1725286064413,3.99156,2505.3,2504.8,3.0]
[1725286064613,3.99156,2505.3,2504.9,0.0366838]
[1725286064614,3.99182,2505.2,2504.9,0.0366838]
[1725286065027,3.99138,2505.4,2504.9,0.0366838]
[1725286065230,4.08107214,2505.5,2504.9,0.0366838]
[1725286065556,3.99155,2505.3,2504.9,0.0366838]
[1725286065764,4.08106214,2505.5,2504.9,5.41912818]
[1725286065919,3.99114,2505.6,2505.1,7.98349]
[1725286066263,3.99114,2505.6,2505.2,3.03658104]
[1725286066636,3.99122,2505.5,2505.2,3.03658104]
[1725286066836,3.99153,2505.3,2505.2,0.03658104]
[1725286067142,3.99122,2505.5,2505.0,3.0]
[1725286067442,7.9837,2505.1,2505.0,3.0]
[1725286067648,7.98447,2504.9,2504.5,3.0]
[1725286067812,3.99221,2504.9,2504.5,3.0]
[1725286068165,3.99221,2504.9,2504.5,4.141466]
[1725286068470,3.99201,2505.0,2504.5,8.134266]
[1725286068649,3.99194,2505.1,2504.6,3.99257]
[1725286068827,3.99194,2505.1,2504.7,6.99248]
[1725286069152,4.08144214,2505.2,2504.8,3.0]
[1725286069379,3.99169,2505.3,2504.9,2.298]
[1725286069660,3.99174,2505.2,2504.9,2.298]
[1725286070560,3.99169,2505.3,2504.9,2.298]
[1725286070561,3.99155,2505.3,2504.9,2.298]
[1725286070762,7.9832,2505.3,2504.9,2.298]
[1725286071054,3.99189,2505.1,2504.9,2.298]
[1725286071352,3.9912,2505.6,2505.1,3.99173]
[1725286071561,0.08974214,2505.7,2505.2,3.0]
[1725286071854,3.99081,2505.8,2505.4,2.3408]
[1725286072057,3.99081,2505.8,2505.4,6.33217]
[1725286072357,3.99081,2505.8,2505.4,9.33217]
[1725286072555,3.99058,2505.9,2505.4,9.33217]
[1725286072758,3.99001,2506.3,2505.8,3.9906]
[1725286072976,3.9898,2506.4,2505.9,9.35499]
[1725286073128,3.9898,2506.4,2505.9,10.889568]
[1725286073321,3.9898,2506.4,2505.9,9.35499]
[1725286073756,3.9898,2506.4,2505.9,5.3645]
[1725286073959,3.99004,2506.3,2505.9,5.3645]
[1725286074163,3.99004,2506.3,2506.0,3.0]
[1725286074361,3.99004,2506.3,2505.9,2.3645]
[1725286074962,3.99004,2506.3,2506.0,0.03577523]
[1725286075146,7.97973,2506.4,2506.0,0.03577523]
[1725286075342,7.97973,2506.4,2506.0,3.03577523]
[1725286075546,3.98998,2506.3,2506.0,3.03577523]
[1725286076059,3.9898,2506.4,2506.0,3.03577523]
[1725286076260,3.98996,2506.3,2506.0,3.03577523]
[1725286076433,3.98996,2506.3,2506.0,0.03577523]
[1725286076817,3.9898,2506.4,2506.0,0.03577523]
[1725286077060,7.97913,2506.6,2506.0,5.04496398]
[1725286077243,7.97913,2506.6,2506.1,3.0]
[1725286077418,7.97913,2506.6,2506.1,3.03575889]
[1725286077617,3.98955,2506.6,2506.1,3.03575889]
[1725286077836,3.98963,2506.5,2506.1,3.03575889]
[1725286078256,3.98947,2506.6,2506.1,7.02597889]
[1725286078558,3.98963,2506.5,2506.1,3.03575889]
[1725286079017,0.797818,2506.8,2506.3,3.98993]
[1725286079018,3.98922,2506.8,2506.3,3.98993]
[1725286079215,4.07896214,2506.8,2506.4,3.0]
[1725286079417,4.07896214,2506.8,2506.4,5.3006]
[1725286079749,3.98933,2506.7,2506.5,0.03569356]
[1725286079954,3.98933,2506.7,2506.4,2.3006]
[1725286080322,3.98922,2506.8,2506.4,2.3006]
[1725286081363,3.98931,2506.7,2506.4,2.3006]
[1725286081567,3.98988,2506.4,2506.2,3.0]
[1725286081747,0.08974214,2506.7,2506.2,3.0]
[1725286081954,3.98924,2506.8,2506.3,0.07979125]
[1725286082164,3.98908,2506.9,2506.4,3.98978]
[1725286082471,3.98915,2506.8,2506.5,3.0]
[1725286082651,3.98895,2507.0,2506.4,4.67089411]
[1725286082964,3.9886,2507.2,2506.5,3.9896]
[1725286083261,3.9886,2507.2,2506.7,6.3957]
[1725286083418,3.9886,2507.2,2506.7,2.47623364]
[1725286083864,3.98894,2507.0,2506.7,2.4064]
[1725286084165,8.38577821,2507.0,2506.7,2.4064]
[1725286084323,3.98894,2507.0,2506.7,2.4064]
[1725286085071,3.9886,2507.2,2506.7,2.48617697]
[1725286085382,3.98868,2507.1,2506.7,2.48617697]
[1725286085534,3.98868,2507.1,2506.7,2.4064]
[1725286085860,3.9886,2507.2,2506.7,2.4064]
[1725286086038,3.98839,2507.3,2506.8,0.07977689]
[1725286086233,7.97658,2507.4,2506.8,3.07977689]
[1725286086433,3.98836,2507.3,2506.8,3.07977689]
[1725286086646,3.98852,2507.2,2506.8,3.07977689]
[1725286086875,0.08974214,2507.1,2506.7,5.4064]
[1725286087070,3.98891,2507.0,2506.7,5.4064]
[1725286087281,3.98899,2506.9,2506.7,5.4064]
[1725286087435,3.98899,2506.9,2506.3,2.3304]
[1725286087436,0.89650635,2506.9,2506.3,2.3304]
[1725286087632,3.98946,2506.6,2506.3,2.3304]
[1725286087862,4.07896214,2506.8,2506.3,2.3304]
[1725286088063,3.98894,2507.0,2506.3,8.32025]
[1725286088338,3.98899,2506.9,2506.3,8.32025]
[1725286088561,3.98926,2506.8,2506.3,2.3304]
[1725286088778,0.398894,2507.0,2506.3,2.3304]
[1725286088779,3.98965,2506.5,2506.3,2.3304]
[1725286089076,3.9901,2506.2,2506.0,7.41]
[1725286089851,3.99005,2506.3,2506.0,7.41]
[1725286090061,3.98964,2506.5,2506.0,7.41]
[1725286090390,0.08974214,2506.4,2506.0,7.41]
[1725286090545,0.08974214,2506.4,2505.8,19.79]
[1725286090546,3.99058,2505.9,2505.8,19.79]
[1725286090750,3.99058,2505.9,2505.3,14.8366]
[1725286090751,3.99092,2505.7,2505.3,2.4866]
[1725286091252,4.389778,2505.9,2505.3,2.4866]
[1725286091492,3.99072,2505.9,2505.3,2.4866]
[1725286091791,3.99093,2505.7,2505.3,2.4866]
[1725286092007,3.99093,2505.7,2505.2,7.41]
[1725286092149,3.99181,2505.2,2504.9,22.1415]
[1725286092548,3.99144,2505.4,2504.9,22.1415]
[1725286093161,3.99114,2505.6,2504.9,22.1415]
[1725286093695,3.99114,2505.6,2505.0,3.0]
[1725286094407,3.99114,2505.6,2505.0,6.99197]
[1725286094622,4.08053214,2505.8,2505.1,7.25473003]
[1725286094761,8.07139214,2505.8,2505.2,3.0]
[1725286095103,4.08053214,2505.8,2505.2,3.0]
[1725286095277,4.08053214,2505.8,2505.3,2.2865]
[1725286096065,3.99061,2505.9,2505.4,0.07982354]
[1725286096298,3.99048,2506.0,2505.4,3.0]
[1725286096639,3.99075,2505.8,2505.4,4.3532283]
[1725286096809,3.99075,2505.8,2505.4,3.0]
[1725286096810,7.98161,2505.8,2505.4,3.0]
[1725286097010,7.98161,2505.8,2505.3,2.2865]
[1725286097011,0.08974214,2505.8,2505.3,2.2865]
[1725286097214,3.9909,2505.7,2505.3,2.2865]
[1725286100520,7.98195,2505.7,2505.2,3.0]
[1725286100728,3.9909,2505.7,2505.2,3.0]
[1725286100917,3.9909,2505.7,2505.3,2.2632]
[1725286102258,7.98189,2505.7,2505.3,2.2632]
[1725286102406,3.99106,2505.6,2505.3,5.908687]
[1725286102612,3.99106,2505.6,2505.4,3.0]
[1725286102813,3.99106,2505.6,2505.3,2.2632]
[1725286103316,3.99122,2505.5,2505.4,0.04397865]
[1725286103542,3.99122,2505.5,2505.2,3.0]
[1725286103884,3.99122,2505.5,2505.3,0.03575908]
[1725286104081,3.99122,2505.5,2505.2,3.0]
[1725286104379,3.99122,2505.5,2505.4,0.0357504]
[1725286104586,7.98254,2505.5,2505.3,0.03575908]
[1725286104786,3.99122,2505.5,2505.4,0.0357504]
[1725286105589,3.99147,2505.4,2505.2,3.0]
[1725286105790,3.99153,2505.3,2505.2,3.0]
[1725286107190,3.99175,2505.2,2505.0,2.281]
[1725286108585,3.99153,2505.3,2504.8,7.41]
[1725286108741,3.99188,2505.1,2504.3,2.4965]
[1725286108947,7.98562,2504.5,2504.1,2.4965]
[1725286109358,3.99299,2504.4,2504.1,2.4965]
[1725286109683,3.99281,2504.5,2504.1,2.4965]
[1725286110585,3.9927,2504.6,2504.1,6.48986]
[1725286110891,3.9927,2504.6,2504.2,0.98647555]
[1725286111055,3.99282,2504.5,2504.2,3.98647555]
[1725286111256,3.99237,2504.8,2504.2,3.1249905]
[1725286111460,3.99268,2504.6,2504.2,7.1182505]
[1725286111670,3.99237,2504.8,2504.2,8.67898355]
[1725286111886,3.99188,2505.1,2504.5,6.461]
[1725286111887,3.99212,2505.0,2504.5,6.461]
[1725286112096,3.99212,2505.0,2504.6,3.0]
[1725286112394,3.99225,2504.9,2504.6,3.0]
[1725286112560,3.99225,2504.9,2504.5,2.4683]
[1725286112561,3.99225,2504.9,2504.5,5.4683]
[1725286112748,3.99225,2504.9,2504.5,25.2583]
[1725286113251,3.99234,2504.8,2504.5,25.2583]
[1725286113485,4.08158214,2505.2,2504.5,25.2583]
[1725286113663,3.99208,2505.0,2504.5,12.39168428]
[1725286113994,3.99208,2505.0,2504.5,16.38440428]
[1725286114195,3.99185,2505.1,2504.6,7.61007043]
[1725286114365,3.99185,2505.1,2504.7,3.0]
[1725286114908,3.99155,2505.3,2504.8,6.40974]
[1725286115054,3.99155,2505.3,2504.9,3.940974]
[1725286115405,3.99133,2505.5,2504.9,3.940974]
[1725286115690,3.99133,2505.5,2505.1,3.99184]
[1725286115896,3.991,2505.7,2505.2,5.4014]
[1725286116197,3.99116,2505.6,2505.2,5.4014]
[1725286116490,3.99123,2505.5,2505.2,5.4014]
[1725286116792,4.79854721,2505.5,2505.2,3.0]
[1725286116996,3.9913,2505.5,2505.1,3.0]
[1725286117181,0.08974214,2505.7,2505.1,3.0]
[1725286117492,3.99153,2505.4,2505.1,3.0]
[1725286117650,3.99161,2505.3,2505.1,3.0]
[1725286117850,3.99169,2505.2,2505.1,3.0]
[1725286118091,7.98338,2505.2,2505.1,3.0]
[1725286119066,3.99169,2505.2,2505.1,3.0]
[1725286119274,7.98338,2505.2,2505.1,3.0]
[1725286119972,3.99169,2505.2,2505.1,3.0]
[1725286120604,8.07270214,2505.4,2505.1,3.0]
[1725286120771,3.99148,2505.4,2505.1,5.4014]
[1725286121224,3.99146,2505.4,2505.1,3.0]
[1725286121512,3.99169,2505.2,2505.1,3.0]
[1725286122110,3.99169,2505.2,2505.0,3.0]
[1725286122287,7.98351,2505.2,2505.0,3.0]
[1725286122628,3.99185,2505.1,2505.0,3.0]
[1725286122837,3.99179,2505.2,2505.0,3.0]
[1725286123337,3.99147,2505.4,2505.0,8.58869306]
[1725286123627,3.99155,2505.3,2505.0,4.59670306]
[1725286123836,3.99147,2505.4,2505.0,4.59670306]
[1725286123986,7.98297,2505.4,2505.0,4.59670306]
[1725286124186,3.99147,2505.4,2505.0,4.59670306]
[1725286124896,3.99123,2505.5,2505.1,1.64305846]
[1725286125095,3.99123,2505.5,2505.1,2.19305846]
[1725286126296,3.99141,2505.4,2505.1,2.19305846]
[1725286126509,3.99141,2505.4,2505.1,0.55]
[1725286126692,3.99122,2505.5,2505.1,0.55]
[1725286126890,3.99138,2505.4,2505.1,0.55]
[1725286127528,3.99169,2505.2,2505.0,3.0]
[1725286128056,3.99159,2505.3,2505.0,3.0]
[1725286128199,3.99133,2505.5,2505.1,2.279]
[1725286128399,3.99068,2505.9,2505.3,3.99153]
[1725286128704,3.9909,2505.7,2505.4,3.0]
[1725286128904,3.9909,2505.7,2505.3,3.0]
[1725286129135,3.9909,2505.7,2505.3,5.87047]
[1725286129503,7.9814,2505.9,2505.3,9.94180714]
[1725286129733,3.99068,2505.9,2505.3,9.94180714]
[1725286129932,7.9814,2505.9,2505.4,1.48648071]
[1725286130105,7.98136,2505.9,2505.4,2.11629635]
[1725286130301,3.99068,2505.9,2505.4,2.11629635]
[1725286130505,3.99091,2505.7,2505.4,2.03648071]
[1725286130701,0.08974214,2506.1,2505.3,3.0]
[1725286130702,3.99133,2505.5,2505.3,3.0]
[1725286131015,3.9913,2505.5,2505.2,5.373]
[1725286131833,0.08974214,2505.9,2505.2,6.86958604]
[1725286132040,3.99048,2506.0,2505.3,0.07982519]
[1725286132327,3.99048,2506.0,2505.3,3.27311712]
[1725286132644,3.99075,2505.8,2505.4,3.0]
[1725286133719,3.991,2505.7,2505.4,3.0]
[1725286134508,7.98201,2505.7,2505.4,3.0]
[1725286134733,3.991,2505.7,2505.4,3.0]
[1725286135712,3.99074,2505.8,2505.4,3.0]
[1725286136544,3.98911869,2505.9,2505.4,8.88367112]
[1725286137263,3.99044,2506.0,2505.5,3.99111]
[1725286137557,3.99044,2506.0,2505.6,5.4297]
[1725286138236,7.98095,2506.0,2505.6,6.95216623]
[1725286138435,3.99044,2506.0,2505.6,6.95216623]
[1725286138920,4.07985214,2506.2,2505.7,3.99082]
[1725286139272,3.99058,2505.9,2505.8,3.0]
[1725286139564,3.99075,2505.8,2505.4,4.81258232]
[1725286140037,3.99075,2505.8,2505.5,1.08040223]
[1725286140240,7.98161,2505.8,2505.5,4.08040223]
[1725286140453,0.08974214,2505.9,2505.5,3.0]
[1725286140622,0.08974214,2505.9,2505.2,2.4297]
[1725286140623,3.99092,2505.7,2505.2,9.42139]
[1725286140968,0.08974214,2505.9,2505.3,3.320314]
[1725286141134,3.99106,2505.6,2505.4,3.0]
[1725286141837,3.99121,2505.5,2505.4,3.0]
[1725286142024,7.98221,2505.6,2505.2,5.4297]
[1725286142224,7.98221,2505.6,2505.3,0.65332762]
[1725286142425,3.99122,2505.5,2505.3,0.65332762]
[1725286142620,3.99122,2505.5,2505.3,3.65332762]
[1725286142926,7.98221,2505.6,2505.3,3.65332762]
[1725286143238,3.99106,2505.6,2505.3,3.65332762]
[1725286143967,4.08065214,2505.7,2505.3,3.65332762]
[1725286144136,4.08046214,2505.9,2505.4,4.59953276]
[1725286144462,4.08042214,2505.9,2505.5,3.82528604]
[1725286145060,4.08040214,2505.9,2505.5,7.81648604]
[1725286145362,7.98137,2505.9,2505.5,3.82528604]
[1725286145720,3.99066,2505.9,2505.5,3.82528604]
[1725286146024,3.99066,2505.9,2505.5,3.90510398]
[1725286146459,4.08023214,2506.0,2505.5,7.89624398]
[1725286146664,4.08023214,2506.0,2505.5,7.81642604]
[1725286147167,4.08023214,2506.0,2505.6,3.73629588]
[1725286147471,4.08023214,2506.0,2505.6,7.72734588]
[1725286147765,4.08023214,2506.0,2505.7,3.0]
[1725286147967,3.99039,2506.1,2505.7,3.0]
[1725286148185,7.98074,2506.1,2505.7,3.0]
[1725286148323,3.99007,2506.3,2505.8,5.06336659]
[1725286148524,0.08974214,2506.4,2505.9,6.99046]
[1725286148525,4.07954214,2506.4,2505.9,6.99046]
[1725286148840,4.07954214,2506.4,2505.9,9.78375948]
[1725286149035,3.98995,2506.3,2505.9,5.79329948]
[1725286149252,7.98,2506.3,2505.9,5.79329948]
[1725286149467,3.98995,2506.3,2505.9,5.79329948]
[1725286149655,3.98995,2506.3,2506.0,1.08567561]
[1725286150868,4.07956214,2506.4,2506.0,1.08567561]
[1725286151168,3.98982,2506.4,2506.0,3.44987561]
[1725286151375,3.98927,2506.8,2506.4,2.4525]
[1725286151531,0.08974214,2506.9,2506.5,3.98962]
[1725286151727,3.98894,2507.0,2506.5,3.98962]
[1725286151728,4.07866214,2507.0,2506.5,3.98962]
[1725286151931,4.07866214,2507.0,2506.6,3.0]
[1725286152127,8.06764214,2507.0,2506.6,3.0]
[1725286152350,4.07837214,2507.2,2506.6,4.9980137]
[1725286152552,0.08974214,2507.4,2506.8,2.2552]
[1725286152769,6.24309,2507.6,2506.8,2.2552]
[1725286152770,4.07773214,2507.6,2507.0,3.98883]
[1725286152939,4.07770214,2507.6,2507.1,3.0]
[1725286153139,0.08974214,2507.6,2507.1,6.98867]
[1725286153339,0.08974214,2507.6,2507.1,7.69552984]
[1725286153743,4.07765214,2507.6,2507.1,3.70685984]
[1725286153943,8.06566214,2507.6,2507.1,3.70685984]
[1725286154157,4.07765214,2507.6,2507.1,3.70685984]
[1725286154468,4.07765214,2507.6,2507.2,2.74856498]
[1725286154669,4.07765214,2507.6,2507.3,3.0]
[1725286155029,4.07765214,2507.6,2507.1,3.70685984]
[1725286155231,4.07765214,2507.6,2507.2,2.3773]
[1725286155430,3.98835,2507.3,2507.2,3.0]
[1725286155845,4.07783214,2507.5,2507.1,3.0]
[1725286156030,3.98797,2507.6,2507.1,6.25773]
[1725286156516,3.98765,2507.8,2507.2,2.3773]
[1725286156672,3.98765,2507.8,2507.3,1.262359]
[1725286157002,3.98765,2507.8,2507.3,4.262359]
[1725286157318,3.98747,2507.9,2507.3,4.34211465]
[1725286157480,3.98747,2507.9,2507.4,1.07078947]
[1725286157819,3.98716,2508.1,2507.5,2.45704929]
[1725286157820,8.06409214,2508.1,2507.5,2.45704929]
[1725286158103,3.98716,2508.1,2507.6,2.0]
[1725286158307,3.98716,2508.1,2507.7,0.43773]
[1725286158760,3.98716,2508.1,2507.6,3.0]
[1725286158761,3.98749,2507.9,2507.6,3.0]
[1725286158960,3.98749,2507.9,2507.5,2.3773]
[1725286159197,0.08974214,2508.0,2507.5,2.3773]
[1725286159406,3.98712,2508.1,2507.6,0.936546]
[1725286159618,7.97432,2508.1,2507.6,3.936546]
[1725286159906,3.98684,2508.3,2507.6,13.912146]
[1725286160063,3.98684,2508.3,2507.8,2.499]
[1725286160257,3.98664,2508.4,2507.9,0.07974296]
[1725286160501,3.98664,2508.4,2507.8,9.48645]
[1725286160706,3.98664,2508.4,2507.9,3.9210547]
[1725286161181,7.97333,2508.4,2507.9,3.9210547]
[1725286161504,3.98692,2508.2,2507.9,3.0]
[1725286161708,0.08974214,2508.3,2507.8,5.499]
[1725286161877,3.98702,2508.2,2507.8,5.499]
[1725286162211,3.98709,2508.1,2507.8,5.499]
[1725286162363,7.97409,2508.2,2507.8,5.499]
[1725286162888,3.98702,2508.2,2507.8,5.499]
[1725286163061,3.98701,2508.2,2507.8,5.499]
[1725286163404,3.98735,2508.0,2507.8,5.499]
[1725286163606,7.97431,2508.1,2507.9,3.0]
[1725286163814,3.98726,2508.0,2507.8,2.499]
[1725286166044,3.98709,2508.1,2507.8,2.499]
[1725286166447,7.97426,2508.1,2507.8,2.499]
[1725286166846,3.98709,2508.1,2507.8,2.499]
[1725286167002,0.08974214,2508.4,2507.8,2.499]
[1725286167003,3.98739,2507.9,2507.8,2.499]
[1725286167209,3.98712,2508.1,2507.5,5.4418]
[1725286167400,2.57074214,2508.3,2507.5,5.4418]
[1725286167401,7.97492,2507.9,2507.5,8.36379]
[1725286167633,7.97493,2507.9,2507.5,5.4418]
[1725286168033,3.98741,2507.9,2507.5,5.4418]
[1725286168507,7.97492,2507.9,2507.5,5.4418]
[1725286168703,8.06466214,2507.9,2507.5,5.4418]
[1725286168954,3.9875,2507.9,2507.5,5.4418]
[1725286169155,4.07740214,2507.8,2507.5,5.4418]
[1725286169443,3.98757,2507.8,2507.5,5.4418]
[1725286169644,3.98757,2507.8,2507.6,3.0]
[1725286169940,3.98757,2507.8,2507.5,2.4418]
[1725286171253,3.9875,2507.9,2507.5,5.5146024]
[1725286171442,3.9875,2507.9,2507.6,3.0]
[1725286172142,3.98726,2508.0,2507.6,3.0]
[1725286173023,3.98742,2507.9,2507.6,3.0]
[1725286173257,3.98781,2507.7,2507.4,3.0]
[1725286174062,3.98799,2507.6,2507.4,3.0]
[1725286175569,0.08974214,2507.9,2507.4,3.0]
[1725286175570,8.06580214,2507.5,2507.4,3.0]
[1725286175867,7.97638,2507.4,2507.3,19.79]
[1725286176068,8.06612214,2507.4,2507.3,19.79]
[1725286176751,7.97638,2507.4,2507.3,19.79]
[1725286177562,7.97638,2507.4,2507.3,22.79]
[1725286179119,3.98914,2506.9,2506.4,7.41]
[1725286179412,4.07900214,2506.8,2506.7,3.0]
[1725286179612,4.07900214,2506.8,2506.5,3.0]
[1725286179613,3.98926,2506.8,2506.5,3.0]
[1725286179924,3.98926,2506.8,2506.5,0.924073]
[1725286180113,3.98914,2506.9,2506.5,3.924073]
[1725286180298,7.97822,2506.9,2506.5,3.924073]
[1725286180485,8.06794214,2506.9,2506.5,3.924073]
[1725286180690,3.98908,2506.9,2506.5,3.924073]
[1725286180923,3.98908,2506.9,2506.6,0.6174873]
[1725286181588,3.98798,2507.6,2507.0,3.98873]